Cogmind - Beta 16 @@@ ROGUE MODE // 2025.11.14 @ 18:57:38 Player: guru-sr Result: Destroyed by G-47 Trooper with Particle Gun Performance ------------- Evolutions (1) 500 Regions Visited (6) 1200 Robots Destroyed (61) 305 Value Destroyed (1369) 1369 Prototype IDs (22) 440 Alien Tech Used (0) 0 Bonus (208) 208 TOTAL SCORE: 4022 Bonus ------- Follower Combat Kills 208 Cogmind --------- Core Integrity 0/400 Matter 279/300 Energy 160/160 System Corruption 3% Temperature Hot (232) Movement Core (1650) Ox32 Location -8/Mines Parts ------- > --- POWER (1) -------- Light Nuclear Core > --- PROPULSION (2) --- (None) > --- UTILITY (4) ------ Huge Storage Unit Terrain Scan Processor Hardened Light Armor Plating Hacking Suite > --- WEAPON (2) ------- Ion Cannon Heavy Assault Rifle > --- INVENTORY (25) --- Light Nuclear Core Light Treads Carbon-fiber Leg Compact Wheel Armored Wheel Improved Heat Sink Structural Scanner Improved Sensor Array Improved Signal Interpreter Terrain Scanner Hardened Light Armor Plating Hardened Light Armor Plating Hacking Suite Hacking Suite Hacking Suite System Shield System Shield System Shield Ion Cannon Ion Cannon Ion Cannon Datajack Mining Laser Peak State ------------ > --- POWER ------------ Nuclear Core > --- PROPULSION ------- Light Treads Compact Wheel > --- UTILITY ---------- Huge Storage Unit Improved Terrain Scanner Hacking Suite Hacking Suite > --- WEAPON ----------- Ion Cannon Improved Assault Rifle > --- INVENTORY -------- Nuclear Core Light Treads Compact Wheel Improved Heat Sink Improved Sensor Array Improved Signal Interpreter Terrain Scan Processor Transport Network Coupler Targeting Computer ECM Suite Power Shielding Light Armor Plating Light Armor Plating Hacking Suite Hacking Suite System Shield System Shield System Shield System Shield Ion Cannon Ion Cannon Ion Cannon Autogun Rocket Launcher Mining Laser [Rating: 26] Favorites ----------- Power Nuclear Core Engine Ion Engine Power Core Nuclear Core Propulsion Light Treads Treads Light Treads Wheel Compact Wheel Utility Hacking Suite Device Improved Terrain Scanner Storage Huge Storage Unit Processor Targeting Computer Hackware Hacking Suite Protection Medium Armor Plating Weapon Assault Rifle Energy Gun Particle Gun Energy Cannon Ion Cannon Ballistic Gun Assault Rifle Launcher Rocket Launcher Special Weapon Mining Laser Special Melee Weapon Datajack Build | -11 -10 -10 -9 -9 -9 -8 ------- Run | Yrd Mat Min Mat Min Exi Min Slots Evolved 2 | . . . 2 . . . Power . | . . . . . . . Propulsion . | . . . . . . . Utility 2 | . . . 2 . . . Weapon . | . . . . . . . Parts Attached 42 | 7 9 2 17 . 1 6 Power 6 | 1 1 . 3 . . 1 Engine 1 | 1 . . . . . . Core 5 | . 1 . 3 . . 1 Reactor . | . . . . . . . Propulsion 9 | 2 2 . 5 . . . Treads 5 | 1 . . 4 . . . Leg . | . . . . . . . Wheel 4 | 1 2 . 1 . . . Hover . | . . . . . . . Flight . | . . . . . . . Utility 14 | 2 3 1 4 . . 4 Device 4 | 1 1 1 . . . 1 Storage 3 | 1 2 . . . . . Processor 3 | . . . 2 . . 1 Hackware 2 | . . . 2 . . . Protection 2 | . . . . . . 2 Artifact . | . . . . . . . Weapon 13 | 2 3 1 5 . 1 1 Energy Gun 2 | . 1 1 . . . . Energy Cannon 1 | . . . 1 . . . Ballistic Gun 6 | 2 1 . 2 . . 1 Ballistic Cannon . | . . . . . . . Launcher 1 | . . . 1 . . . Special Weapon 2 | . 1 . 1 . . . Impact Weapon . | . . . . . . . Slashing Weapon . | . . . . . . . Piercing Weapon . | . . . . . . . Special Melee Weapon 1 | . . . . . 1 . Unidentified Prototypes 1 | . . . 1 . . . Parts Lost 11 | . 2 . . 2 . 7 Power 2 | . 1 . . . . 1 Propulsion 3 | . 1 . . . . 2 Utility 3 | . . . . . . 3 Weapon 3 | . . . . 2 . 1 Highest Loss Streak 4 | . 2 . . 1 . 4 To Critical Strikes . | . . . . . . . Average Backups 21 | 4 12 23 24 24 25 24 Power 1 | . 1 1 . 1 1 1 Propulsion 3 | 2 2 4 2 2 4 4 Utility 13 | . 7 14 15 14 14 13 Weapon 3 | 1 1 1 4 5 5 4 Tool/Special . | . . . . . . . Unused Backups 43 | 1 1 2 18 . . 21 Power 3 | . . 1 1 . . 1 Propulsion 8 | 1 . 1 1 . . 5 Utility 27 | . . . 15 . . 12 Weapon 5 | . 1 . 1 . . 3 Tool/Special . | . . . . . . . Average Slot Usage (%) 99 | . 99 100 99 100 100 96 Core 11 | . 11 14 11 11 11 10 Treads 12 | . 14 14 11 11 11 11 Wheel 11 | . 13 14 11 11 11 10 Device 11 | . 14 14 11 11 11 5 Storage 12 | . 14 14 11 11 11 11 Processor 1 | . . . 2 . . 9 Hackware 12 | . . . 18 22 22 12 Energy Cannon 5 | . . . 8 11 2 11 Ballistic Gun 15 | . 26 25 10 10 11 11 Special Melee Weapon 1 | . . . . . 8 . Peak Build Rating 26 | 9 13 15 26 26 26 26 Average Rating 20 | 5 11 13 23 25 25 23 On Entrance 16 | . 9 13 15 26 26 26 Avg Prop Armor Cover (%) 12 | 12 11 12 12 12 13 10 Naked Turns . | . . . . . . . Heaviest Build 103 | 14 90 91 97 98 97 103 Greatest Support 16 | 10 16 16 16 16 16 16 Greatest Overweight (x) 8 | 4 8 5 6 6 6 6 Average Overweight (x) 4 | 1 2 5 5 6 5 5 Largest Inventory Capacity 25 | 8 25 25 25 25 25 25 Average Capacity 22 | 7 16 25 25 25 25 25 Most Carried 25 | 7 22 25 25 25 25 25 Average Carried 21 | 4 12 23 24 24 25 24 Final Capacity 25 | 8 25 25 25 25 25 25 Final Carried 25 | 6 22 25 25 25 25 23 Class Distribution -------------------- 53% | Hacker-Mutant 46% | Mutant Dominant Class ---------------- Mutant | -10/Materials Mutant | -10/Mines Hacker-Mutant | -9/Materials Hacker-Mutant | -9/Mines Hacker-Mutant | -9/Exiles Mutant | -8/Mines Resources | -11 -10 -10 -9 -9 -9 -8 ----------- Run | Yrd Mat Min Mat Min Exi Min Matter Collected 1773 | 247 483 72 492 305 . 174 Remotely . | . . . . . . . Salvage Created 1817 | 46 479 . 643 122 . 527 Parts 123 | 9 32 . 44 5 . 33 Haulers Intercepted 3 | . 2 . 1 . . . Recyclers Shooed 2 | . 1 . . . . 1 Parts Field Recycled . | . . . . . . . Retrieved Matter . | . . . . . . . Parts Self-Destructed . | . . . . . . . Prevented . | . . . . . . . Parts Restored . | . . . . . . . Kills | -11 -10 -10 -9 -9 -9 -8 ------- Run | Yrd Mat Min Mat Min Exi Min Combat Hostiles Destroyed 44 | . 8 . 15 7 . 14 Guns 13 | . 5 . 5 . . 3 Cannons 25 | . . . 8 6 . 11 AOE 6 | . 3 . 2 1 . . Classes Destroyed 14 | 1 6 . 4 3 . . Worker 3 | . 1 . 1 1 . . Builder 3 | . . . . 1 . 2 Tunneler 4 | 2 . . . . . 2 Hauler 3 | . 2 . 1 . . . Mechanic 1 | . 1 . . . . . Operator 3 | . 1 . 2 . . . Watcher 5 | . 3 . 2 . . . Swarmer 14 | . . . 7 . . 7 Grunt 17 | . 8 . 3 . . 6 Brawler 2 | . . . 1 . . 1 Duelist 1 | . . . 1 . . . Sentry 4 | . . . 4 . . . Demolisher 1 | . . . . 1 . . Assembled 6 | . . . . 6 . . Best Kill Streak 5 | 1 5 . 4 4 . 5 Combat Bots Only 5 | . 4 . 3 4 . 5 Max Kills in Single Turn 4 | 1 4 . 2 1 . 1 Gunslinging . | . . . . . . . Exploded 3 | . 3 . 1 1 . . Melee . | . . . . . . . Uniques/NPCs Destroyed . | . . . . . . . Combat | -11 -10 -10 -9 -9 -9 -8 -------- Run | Yrd Mat Min Mat Min Exi Min Hostile Shots Fired 211 | . 39 . 57 26 . 89 Missed 50 | . 2 . 14 9 . 25 Hits 161 | . 37 . 43 17 . 64 Melee 1 | . . . . . . 1 Projectile 160 | . 37 . 43 17 . 63 AOE 5 | . . . . 5 . . Critical Strikes 5 | . 1 . 2 . . 2 Damage Taken 2168 | . 547 . 438 319 . 864 Core 509 | . 107 . 119 102 . 181 Absorbed by Shields . | . . . . . . . Regen/Repaired (Parts) 142 | . 81 . 61 . . . Core Remaining (%) 78 | 100 . 57 . . . . Volleys Fired 208 | 3 48 3 85 23 . 46 Largest 2 | 2 2 1 2 2 . 2 Hottest 160 | 40 100 100 160 93 . 83 Shots Fired 373 | 6 83 5 141 46 . 92 Gun 196 | 6 71 2 50 21 . 46 Cannon 136 | . . . 67 23 . 46 Launcher 11 | . . . 9 2 . . Special 30 | . 12 3 15 . . . Kinetic 188 | 6 71 2 42 21 . 46 Thermal 174 | . 12 3 90 23 . 46 Explosive 11 | . . . 9 2 . . Electromagnetic . | . . . . . . . Robot Hit Streak 15 | 3 9 . 9 7 . 15 Robot Miss Streak 4 | 1 3 1 3 1 . 4 Penetration Max . | . . . . . . . Secondary Targets 1 | . . . 1 . . . Max Gunslinging Chain 1 | . . . 1 . . . Shots Hit Robots 186 | 5 45 . 49 27 4 56 Core Hits 94 | 3 26 . 25 15 . 25 Critical Kills . | . . . . . . . Critical Parts Destroyed 2 | . 1 . . . . 1 Critical Strikes 2 | . 1 . . . . 1 Destroy 2 | . 1 . . . . 1 Melee Attacks 4 | . . . . . 4 . Impact . | . . . . . . . Slashing . | . . . . . . . Piercing . | . . . . . . . Sneak Attacks 4 | . . . . . 4 . Combat Hostiles . | . . . . . . . Follow-up Attacks . | . . . . . . . Damage Inflicted 4166 | 50 1132 . 1043 720 . 1221 Guns 1534 | 50 584 . 363 135 . 402 Cannons 1789 | . . . 554 416 . 819 Explosions 843 | . 548 . 126 169 . . Melee . | . . . . . . . Ramming . | . . . . . . . Kinetic 1453 | 50 584 . 282 135 . 402 Thermal 1870 | . . . 635 416 . 819 Explosive 843 | . 548 . 126 169 . . Electromagnetic . | . . . . . . . Impact . | . . . . . . . Slashing . | . . . . . . . Piercing . | . . . . . . . Highest Corruption 3 | . 3 3 . . . 3 Average Corruption 2 | . 2 3 . . . 3 Corruption Purged . | . . . . . . . Corruption Blocked . | . . . . . . . Effects 34 | . 20 14 . . . . Message Errors 8 | . 5 3 . . . . Matter Fused 7 | . 4 3 . . . . Heat Flow Errors 5 | . 4 1 . . . . Energy Discharges 5 | . 3 2 . . . . Data Loss (minor) 4 | . 2 2 . . . . Data Loss (major) 1 | . . 1 . . . . Misfires 4 | . 2 2 . . . . Overload Shots . | . . . . . . . Overflow Damage 212 | . 190 . 5 9 . 8 Projectiles 21 | . . . 5 8 . 8 Explosions 191 | . 190 . . 1 . . Melee . | . . . . . . . Knockbacks . | . . . . . . . Impact . | . . . . . . . Kinetic . | . . . . . . . Secondary . | . . . . . . . Self-Inflicted Damage 117 | . 86 . 31 . . . Shots 2 | . 1 . 1 . . . Rammed . | . . . . . . . Targets Rammed . | . . . . . . . Kicked . | . . . . . . . Crushed . | . . . . . . . Highest Temperature 286 | . 286 255 234 176 . 205 Average Temperature 63 | . 77 116 50 56 . 70 Received Heat Transfer 824 | . 282 . 84 80 . 378 Effects 6 | . 6 . . . . . Interference 6 | . 6 . . . . . Siege Activations . | . . . . . . . Martial Activations . | . . . . . . . Shielding Activations . | . . . . . . . Robots Disrupted . | . . . . . . . Combat Hostiles . | . . . . . . . Robots Corrupted . | . . . . . . . Combat Hostiles . | . . . . . . . Parts Fried . | . . . . . . . Impact Corruptions . | . . . . . . . Robots Melted . | . . . . . . . Combat Hostiles . | . . . . . . . Parts Melted 6 | . . . 1 . . 5 Heat Transferred 2997 | . . . 1036 666 . 1295 Parts Sabotaged . | . . . . . . . Parts Stolen . | . . . . . . . Parts Stripped . | . . . . . . . Power Chain Reactions . | . . . . . . . Alert | -11 -10 -10 -9 -9 -9 -8 ------- Run | Yrd Mat Min Mat Min Exi Min Maximum Alert Level 1 | . . . 1 . . . Low Security (%) 98 | 100 100 100 95 100 . 100 Level 1 1 | . . . 4 . . . Level 2 . | . . . . . . . Level 3 . | . . . . . . . Level 4 . | . . . . . . . Level 5 . | . . . . . . . High Security . | . . . . . . . Max Security . | . . . . . . . Peak Influence 239 | 5 141 23 239 27 . 166 Initial 27 | . 3 7 . 27 . . Average 52 | . 47 1 87 2 . 111 Influence Increases 1857 | 10 479 25 880 65 . 398 Destroy 0b10 Robot/C 920 | . 160 20 440 20 . 280 Destroy 0b10 Robot/NC 115 | 10 40 . 35 10 . 20 Destroy Leader 218 | . 50 . 118 . . 50 Allied During Kill 32 | . . 3 29 . . . Successful Hack 152 | . 51 . 101 . . . Select Force Hacks 120 | . 60 . 60 . . . Disable Machine 45 | . 30 . 15 . . . Destroy Structure 150 | . 43 2 82 20 . 3 Partial Spotted 15 | . . . . 15 . . Lose Combat Pursuer 90 | . 45 . . . . 45 Influence Decreases 1759 | 5 463 46 808 137 . 300 Entered New Map 61 | . 2 14 . 45 . . Time Decay 1322 | 5 441 32 533 81 . 230 Lost Part 101 | . 20 . . 11 . 70 Lost Ally 37 | . . . 37 . . . Purge Threat 238 | . . . 238 . . . Squads Dispatched 7 | . 3 . 4 . . . Investigation 5 | . 2 . 3 . . . Extermination . | . . . . . . . Reinforcement 2 | . 1 . 1 . . . Assault . | . . . . . . . Garrison . | . . . . . . . Intercept . | . . . . . . . Searches Triggered . | . . . . . . . Construction Impeded . | . . . . . . . Haulers Reinforced . | . . . . . . . Active Scanning Responses . | . . . . . . . Cargo Convoy Interrupts . | . . . . . . . Stealth | -11 -10 -10 -9 -9 -9 -8 --------- Run | Yrd Mat Min Mat Min Exi Min Distress Signals 7 | . 3 . 3 1 . . Communications Jammed . | . . . . . . . Distress Signals . | . . . . . . . Times Spotted 81 | . 20 1 31 10 . 19 Peak Tracking Total 7 | . 6 1 4 7 . 4 Tactical Retreats 5 | . 2 . . 1 . 2 Traps | -11 -10 -10 -9 -9 -9 -8 ------- Run | Yrd Mat Min Mat Min Exi Min Traps Triggered 2 | . 2 . . . . . Indirectly . | . . . . . . . Trap Hack Attempts . | . . . . . . . Triggered . | . . . . . . . Disarmed . | . . . . . . . Reprogrammed . | . . . . . . . Reused . | . . . . . . . Traps Extracted . | . . . . . . . Installed . | . . . . . . . Triggered . | . . . . . . . Machines | -11 -10 -10 -9 -9 -9 -8 ---------- Run | Yrd Mat Min Mat Min Exi Min Machines Disabled 3 | . 2 . 1 . . . Max in Single Turn 1 | . 1 . 1 . . . Machines Repaired . | . . . . . . . Machines Dismantled . | . . . . . . . Machines Sabotaged . | . . . . . . . Overloaded Fab Kills . | . . . . . . . Hacking | -11 -10 -10 -9 -9 -9 -8 --------- Run | Yrd Mat Min Mat Min Exi Min Machines Accessed 33 | . 11 . 17 1 4 . Terminals 19 | . 8 . 11 . . . Fabricators . | . . . . . . . Repair Stations 3 | . 1 . 2 . . . Recycling Units 4 | . 2 . 2 . . . Scanalyzers 2 | . . . 2 . . . Garrison Access . | . . . . . . . Total Hacks 143 | . 35 . 58 1 49 . Successful 115 | . 23 . 42 1 49 . Failed 26 | . 11 . 15 . . . Catastrophic 4 | . 1 . 3 . . . Database Lockouts 2 | . 1 . 1 . . . Manual 54 | . 20 . 34 . . . Terminals 64 | . 23 . 41 . . . Fabricators . | . . . . . . . Repair Stations 7 | . 4 . 3 . . . Recycling Units 15 | . 8 . 7 . . . Scanalyzers 7 | . . . 7 . . . Garrison Access . | . . . . . . . Terminal Hacks 81 | . 8 . 23 1 49 . Record 51 | . . . 2 . 49 . Part Schematic 1 | . . . 1 . . . Robot Schematic 1 | . . . 1 . . . Robot Analysis 4 | . 2 . 2 . . . Prototype ID Bank 4 | . 2 . 2 . . . Open Door 1 | . . . . 1 . . Level Access Points 2 | . . . 2 . . . Branch Access Points 1 | . . . 1 . . . Machine Index 1 | . . . 1 . . . Terminal Index 2 | . 1 . 1 . . . Unreport Threat 2 | . . . 2 . . . Locate Traps 5 | . 2 . 3 . . . Registered Components 2 | . 1 . 1 . . . Zone Layout 4 | . . . 4 . . . Fabricator Hacks . | . . . . . . . Repair Station Hacks 5 | . 3 . 2 . . . Scan Component 3 | . 2 . 1 . . . Repair 2 | . 1 . 1 . . . Recycling Unit Hacks 4 | . 2 . 2 . . . Report Inventory 4 | . 2 . 2 . . . Scanalyzer 5 | . . . 5 . . . Insert Component 2 | . . . 2 . . . Analyze 2 | . . . 2 . . . Retrieve Study 1 | . . . 1 . . . Garrison Access Hacks . | . . . . . . . Unauthorized Hacks 20 | . 10 . 10 . . . Terminals 9 | . 5 . 4 . . . Botnet 6 | . 3 . 3 . . . Operators 3 | . 2 . 1 . . . Fabricators . | . . . . . . . Repair Stations 1 | . . . 1 . . . Mechanics 1 | . . . 1 . . . Recycling Units 10 | . 5 . 5 . . . Monitor 2 | . 1 . 1 . . . Reject 1 | . 1 . . . . . Recyclers 3 | . 1 . 2 . . . Tunnel 4 | . 2 . 2 . . . Scanalyzers . | . . . . . . . Garrison Access . | . . . . . . . Data Cores Recovered 1 | . . . 1 . . . Used . | . . . . . . . Hacking Detections 26 | . 11 . 15 . . . Full Trace Events 1 | . . . 1 . . . Feedback Events . | . . . . . . . Feedback Blocked . | . . . . . . . Robot Schematics Acquired 1 | . . . 1 . . . Robots Built . | . . . . . . . Authchips . | . . . . . . . Time . | . . . . . . . Total Robot Build Rating . | . . . . . . . Part Schematics Acquired 3 | . . . 3 . . . Parts Built . | . . . . . . . Authchips . | . . . . . . . Time . | . . . . . . . Total Part Build Rating . | . . . . . . . Part Studies Acquired 1 | . . . 1 . . . Parts Repaired 2 | . 1 . 1 . . . Time 64 | . 26 . 38 . . . Parts Recycled . | . . . . . . . Recycled Matter . | . . . . . . . Retrieved Matter . | . . . . . . . Retrieved Components . | . . . . . . . Parts Scanalyzed 2 | . . . 2 . . . Part Schematics Acquired 2 | . . . 2 . . . Parts Damaged . | . . . . . . . Bothacking | -11 -10 -10 -9 -9 -9 -8 ------------ Run | Yrd Mat Min Mat Min Exi Min Used RIF Installer . | . . . . . . . Robots Hacked 4 | . . . . . 4 . Non-combat 3 | . . . . . 3 . Combat 1 | . . . . . 1 . Robot Hacks Applied 4 | . . . . . 4 . parse_system 4 | . . . . . 4 . Relay Couplers Released . | . . . . . . . Fabnet Peak Effective % . | . . . . . . . Robots Rewired . | . . . . . . . Allies Hacked . | . . . . . . . Hacks Repelled . | . . . . . . . Allies | -11 -10 -10 -9 -9 -9 -8 -------- Run | Yrd Mat Min Mat Min Exi Min Total Allies 3 | . . 3 . . . . Largest Group 3 | . . 3 3 . . . Highest-Rated Group 40 | . . 40 40 . . . Highest-Rated Ally 16 | . . 16 16 . . . Total Orders . | . . . . . . . Ally Attacks 68 | . . 5 63 . . . Total Damage 701 | . . 58 643 . . . Kills 9 | . . 1 8 . . . Allies Corrupted . | . . . . . . . Allies Melted . | . . . . . . . Intel | -11 -10 -10 -9 -9 -9 -8 ------- Run | Yrd Mat Min Mat Min Exi Min Active Infowar (turns) 5779 | 29 1165 843 1906 777 824 235 Terrain 5778 | 29 1164 843 1906 777 824 235 Seismic 1 | . 1 . . . . . Robot Analysis Total 4 | . 2 . 2 . . . Derelict Logs Recovered 2 | . . . . 2 . . Drone Launches . | . . . . . . . Drone Recoveries . | . . . . . . . Exploration | -11 -10 -10 -9 -9 -9 -8 ------------- Run | Yrd Mat Min Mat Min Exi Min Turns Passed 6171 | 98 1231 843 1906 777 824 492 Spaces Moved 3030 | 62 731 461 801 349 458 168 Core 26 | 22 4 . . . . . Treads . | . . . . . . . Legs . | . . . . . . . Wheels 3004 | 40 727 461 801 349 458 168 Hover . | . . . . . . . Flight . | . . . . . . . Fastest Speed 50 | 50 95 175 175 190 175 175 Average Speed 167 | 101 125 175 184 190 177 187 Slowest Speed 250 | 250 250 175 190 190 190 190 Overloaded Moves . | . . . . . . . Propulsion Burnouts . | . . . . . . . Robots Hopped . | . . . . . . . Potential Cave-ins . | . . . . . . . Cave-ins Triggered . | . . . . . . . Exploration Rate (%) 67 | 4 100 94 77 74 91 34 Regions Visited 6 Branch Regions 4 Pre-discovered Areas 6 | . 2 1 2 . 1 . Known Exits Taken 1 | . . . 1 . . . Unknown Exits Taken 5 | 1 1 1 . 1 1 . Scrap Searched 3 | . . 2 . 1 . . Spaces Dug 34 | . 10 2 22 . . . Terrain Destroyed 179 | . 44 2 110 20 . 3 Melee . | . . . . . . . Projectile 47 | . 10 2 29 3 . 3 AOE 132 | . 34 . 81 17 . . Terrain Rammed . | . . . . . . . Walls Destroyed . | . . . . . . . Machines Disabled . | . . . . . . . Actions | -11 -10 -10 -9 -9 -9 -8 --------- Run | Yrd Mat Min Mat Min Exi Min Total 3707 | 90 933 489 1060 419 464 252 Wait 270 | 8 104 14 76 41 . 27 Move 3024 | 61 730 460 800 348 457 168 Hop . | . . . . . . . Pick Up 68 | 10 21 4 28 2 . 3 Fast Attach 14 | 4 3 1 4 . . 2 Attach 13 | 3 2 . 3 2 . 3 Detach 1 | . 1 . . . . . Swap 59 | . 16 3 33 3 3 1 Drop 46 | 1 8 4 31 . . 2 Fire 208 | 3 48 3 85 23 . 46 Melee 4 | . . . . . 4 . Ram . | . . . . . . . Kick . | . . . . . . . Crush . | . . . . . . . Escape Stasis . | . . . . . . . Rewire . | . . . . . . . Trap . | . . . . . . . Miscellaneous . | . . . . . . . Route ------- -11/Scrapyard -10/Materials (discovered 6 exits: *Mat x3 / [*Min x2] / [*Sub]) -10/Mines (discovered 2 exits: *Mat / [*Sub]) -9/Materials (discovered 4 exits: *Mat x3 / *Min) -9/Mines (discovered 2 exits: *Mat / *Exi) -9/Exiles (discovered 2 exits: [*Min x2]) -8/Mines History --------- Turn | Location | Event 12 | -11/Scrapyard | Discovered new exit (range 13) 99 | -11/Scrapyard | Entered Materials 322 | -10/Materials | Discovered new exit (range 9) 332 | -10/Materials | Build established: Mutant 410 | -10/Materials | Discovered new exit (range 16) 504 | -10/Materials | Repaired Assault Rifle 844 | -10/Materials | Central database locked down 906 | -10/Materials | Discovered new exit (range 14) 933 | -10/Materials | Discovered new exit (range 6) 1006 | -10/Materials | Discovered new exit (range 15) 1135 | -10/Materials | Discovered new exit (range 4) 1330 | -10/Materials | Entered Mines 1331 | -10/Mines | Learned location of Storage (-7) 1395 | -10/Mines | Excavation squad dispatched 1395 | -10/Mines | A large section of the Mines collapsed 1540 | -10/Mines | Received a Rocket Launcher from a helpful Derelict 1556 | -10/Mines | Assisted by bots powering up and referring to "LRC-V3" 1894 | -10/Mines | Found a Scrap Suit stashed away for nefarious purposes 1896 | -10/Mines | Discovered new exit (range 6) 1897 | -10/Mines | Found Scrap Suit 1961 | -10/Mines | Discovered new exit (range 8) 2173 | -10/Mines | Entered Materials 2173 | -9/Materials | Accompanied by 3 allies 2173 | -9/Materials | Evolved 2 slots: Utility x2 2495 | -9/Materials | Identified exit to Mines 2777 | -9/Materials | Build established: Hacker-Mutant 2897 | -9/Materials | Discovered new exit (range 12) 3365 | -9/Materials | Repaired Nuclear Core 3387 | -9/Materials | Identified exit to Materials 3706 | -9/Materials | Central database locked down 4079 | -9/Materials | Entered Mines 4090 | -9/Mines | Found the Drone Emporium 4153 | -9/Mines | Assembled infested the area 4158 | -9/Mines | Assisted by a Guerilla fighting off Assembled 4303 | -9/Mines | Found a hidden stash of uninstalled traps 4560 | -9/Mines | Core integrity fell below 50% 4576 | -9/Mines | Learned Materials interactive machine intel 4614 | -9/Mines | Discovered exit to Materials (range 16) 4705 | -9/Mines | Learned Materials terminal intel 4846 | -9/Mines | Deemed a non-threat by the Exiles lab entrance 4848 | -9/Mines | Discovered new exit (range 5) 4856 | -9/Mines | Entered Exiles 4887 | -9/Exiles | Discovered new exit (range 15) 4950 | -9/Exiles | Met 8R-AWN 4988 | -9/Exiles | Met EX-HEX 5077 | -9/Exiles | Met EX-DEC 5141 | -9/Exiles | Visited The Gauntlet 5348 | -9/Exiles | Learned location of Zion (-6) 5408 | -9/Exiles | Met EX-BIN 5657 | -9/Exiles | Discovered new exit (range 14) 5680 | -9/Exiles | Entered Mines 5771 | -8/Mines | Core integrity fell below 20% 6039 | -8/Mines | Build established: Mutant 6172 | -8/Mines | Destroyed by G-47 Trooper with Particle Gun Last Messages --------------- 06047_ K-01 Serf collects debris. 06048_ R-06 Scavenger collects Carbon-fiber Leg. 06050_ Acquired Lgt. Nuclear Core. 06051_ K-01 Serf collects debris. 06054_ Dropped Nuclear Core. 06055_ K-01 Serf collects debris. 06056_ Acquired Lgt. Nuclear Core. 06057_ Acquired 54 matter. 06058_ K-01 Serf collects debris. 06065_ Dropped Wheel. 06067_ K-01 Serf collects debris. 06067_ Acquired Carbon-fiber Leg. 06068_ K-01 Serf collects debris. 06154_ Imp. Assault Rifle destroyed. 06154_ System corrupted by crushing effect (+3). 06158_ B-36 Bruiser destroyed. 06159_ Med. Armor Plating destroyed. 06164_ Com. Wheel destroyed. 06170_ Lgt. Treads destroyed. 06172_ Critical hit (Burn: +37). Map ----- +----------------------------------------------------+ | | | | | | | ????????????????????????##?????#???##??#?????????? | | ??????????????????????????#?#???##?##??#??????#??? | | ???????????????????????#???#????????#??####??####? | | ???????????????????????#???#?#????????#?######?##? | | ?????????????????????????#?###?##?###??## ###?? | | ???????????????????????####?###??###?### ### | | ????????????????????? ? ???##?##### | | ??????????????????????" """?#???## | | ??????????????????? ?"" """ #?#### ## | | ???????????######?# """ """ ####?# ### | | ??????????## #?# ### #?## | | ??????##### ?## ??" """ #??# ### | | ?????## ##?? ??" """ ## ######?# #### # | | ?????# #???? """ ""? ?# #??##### #####?# # | | ?????# ###?? ? ??# #?##?#?# ####### # | | ????#?# #?#?##?#####??## ###?#?# # | | ????????# ##?#???#???##??#|##?#??# ######### # | | #??????#?# ##?#??#??######%####### #???##?## # | | ?????#??## ###?#???# =#?##?## ##?###### # | | ????#??## = ##??### ######??## #### =%# | | ??????## [%* ####### #?#?#?#? ?## ####= | | ???#### % % /%g #??#?## ? ##?###### | | ?### #########!#@ ##?#?#? ##### | | ## ##?####?#### #?#?? ###?# =% | | ##????????? ##?#?#?##?# ##### | | ## #???####?? #?#??##???#?####?### | | #?## #?????#?? ###????#????#??#### | | ???#### ##??????? ###???#?#???###??## | | ????#??## ######## ##??????#???????### | | ???#???#?# ###?##??##??????## *| | | ?????????# ##?##?##??????#??# | | | ???????#?###### #?#????#?#?#?????# | | ????#???#?#????# #???#????????????######## | | ????????#????##?# ##???????????#?????#??##?? | | ?????????????#??## ##???????????#??????#???##? | | ?????????????????? ##?????????????????#?????#?? | | ??????????????????? #???????????????????????#??? | | ???????????????????? ?????????????????????##?#? | | ????????????????????? ????????????????????????? | | ??????????????????????### ???????????????????????# | | ?????????????????????????????????????????????????? | | ?????????????????????????????????????????????????? | | ?????????????????????????????????????????????????? | | ?????????????????????????????????????????????????? | | ?????????????????????????????????????????????????? | | ?????????????????????????????????????????????????? | | ?????????????????????????????????????????????????? | +----------------------------------------------------+ Best States ------------- Heat Dissipation 28 Energy Generation 14 Energy Capacity 250 Matter Stores 300 Matter Capacity 300 Sight Range 16 Terrain Scan Range 16 Terrain Scan Density 85 Armor Coverage 225 Evasion (%) 50 Targeting Accuracy 10 Offensive Hacking 20 Item Schematics ----------------- Huge Storage Unit | -9/Materials | Hacked Hacking Suite | -9/Materials | Scanalyzed System Shield | -9/Materials | Scanalyzed Robot Schematics ------------------ M-13 Machinist | -9/Materials | Hacked Fabricated ------------ Nothing Repaired ---------- Assault Rifle | 19% | -10/Materials Nuclear Core | 18% | -9/Materials Studied --------- Ion Cannon | -9/Materials | Hacked Alien Tech Used ----------------- None Achievements -------------- Ghost 'Em Challenges ------------ None Game ------ Seed DecoyColdMediator Manual? 0 Play Time 01:28:02 Cumulative 16.3 hours Start 2025.11.14 @ 17:17:38 End 2025.11.14 @ 18:57:38 Sessions 1 Manual Loads 0 Difficulty Rogue Special Mode None Game No. 12 Rogue 12 Adventurer 0 Explorer 0 Win Type - Total 1 Types 1/0/0/0/0/0/0/0/0/0 Lore% 9 Gallery% 16 Achievement% 26 Wizard Run 0 Options --------- Layout 1 ASCII 0 Keyboard 0 Movement Mouse Keybinds 0 Fullscreen 1 Font 24/Smallcaps Map View 50x35 Zoom Use 0% Tactical HUD 1 Map Filters NONE Filters NONE Steam 1 RUN: 0a18e5f0-ab71-46c1-9198-1cdd764e0993